bitfinex/quotes_BTCUSD_20230906
["timestamp","ask_amount","ask_price","bid_price","bid_amount"]
[1694037099418,0.019,25746.0,25745.0,3.5659922]
[1694037099863,0.004,25746.0,25745.0,3.5659922]
[1694037099995,0.019,25746.0,25745.0,3.5659922]
[1694037100774,0.019,25746.0,25745.0,3.47334261]
[1694037100983,0.019,25746.0,25745.0,3.56615983]
[1694037101391,0.019,25746.0,25745.0,3.47334261]
[1694037103265,0.019,25746.0,25745.0,3.17953185]
[1694037103469,0.019,25746.0,25745.0,2.58122384]
[1694037104651,0.019,25746.0,25745.0,1.80437484]
[1694037105189,0.004,25746.0,25745.0,1.80437484]
[1694037105405,0.019,25746.0,25745.0,1.80437484]
[1694037106778,0.019,25746.0,25745.0,1.71154033]
[1694037107110,0.019,25746.0,25745.0,2.48838933]
[1694037109246,0.019,25746.0,25745.0,1.71154033]
[1694037111133,0.019,25746.0,25745.0,2.48838933]
[1694037111457,0.019,25746.0,25745.0,1.71154033]
[1694037111952,0.019,25746.0,25745.0,2.48838933]
[1694037115415,0.019,25746.0,25745.0,1.71154033]
[1694037115982,0.019,25746.0,25745.0,2.48838933]
[1694037118235,0.019,25746.0,25745.0,1.71154033]
[1694037120833,0.019,25746.0,25745.0,2.48838933]
[1694037121681,0.019,25746.0,25745.0,2.58122384]
[1694037127399,0.019,25746.0,25745.0,2.48838933]
[1694037129661,0.019,25746.0,25745.0,2.58122384]
[1694037130998,0.019,25746.0,25745.0,2.48838933]
[1694037153408,0.019,25746.0,25745.0,2.8750346]
[1694037159219,0.019,25746.0,25745.0,2.96793235]
[1694037159415,0.019,25746.0,25745.0,3.2119315]
[1694037162148,0.019,25746.0,25745.0,3.11903375]
[1694037162417,0.019,25746.0,25745.0,3.21192068]
[1694037170639,0.019,25746.0,25745.0,3.23492068]
[1694037185493,0.019,25746.0,25745.0,3.37425108]
[1694037189113,0.019,25746.0,25745.0,3.83359078]
[1694037191251,0.019,25746.0,25745.0,3.37425108]
[1694037191629,0.019,25746.0,25745.0,3.83358778]
[1694037192034,0.019,25746.0,25745.0,3.37425108]
[1694037194858,0.019,25746.0,25745.0,3.8335868]
[1694037197836,0.019,25746.0,25745.0,3.74069987]
[1694037200102,0.004,25746.0,25745.0,3.74069987]
[1694037200300,0.019,25746.0,25745.0,3.74069987]
[1694037200551,0.004,25746.0,25745.0,3.74069987]
[1694037200965,0.004,25746.0,25745.0,3.92647426]
[1694037201116,0.019,25746.0,25745.0,3.74070039]
[1694037201716,0.019,25746.0,25745.0,3.83359615]
[1694037201945,0.019,25746.0,25745.0,3.83360589]
[1694037202352,0.019,25746.0,25745.0,3.83360687]
[1694037204308,0.019,25746.0,25745.0,3.74071007]
[1694037204516,0.019,25746.0,25745.0,3.83361114]
[1694037208658,0.004,25746.0,25745.0,3.83361114]
[1694037211728,0.019,25746.0,25745.0,3.83361114]
[1694037217141,0.0942669,25751.0,25745.0,4.02966903]
[1694037217396,0.00098677,25751.0,25750.0,1.1725877]
[1694037217606,0.24888013,25756.0,25754.0,0.02]
[1694037217607,0.015,25756.0,25754.0,0.02]
[1694037217813,0.02,25757.0,25755.0,2.23826938]
[1694037218032,0.015,25757.0,25755.0,3.67043538]
[1694037218694,0.015,25757.0,25755.0,3.51577727]
[1694037218895,0.015,25757.0,25756.0,0.03166256]
[1694037219098,0.015,25757.0,25756.0,2.48211656]
[1694037219306,0.016,25757.0,25756.0,2.72617548]
[1694037219952,0.019,25757.0,25756.0,2.72617548]
[1694037220156,0.018,25757.0,25756.0,3.13582075]
[1694037220369,0.018,25757.0,25756.0,3.13466196]
[1694037220578,0.015,25757.0,25756.0,3.13466196]
[1694037220789,0.018,25757.0,25756.0,3.13566196]
[1694037221321,0.019,25757.0,25756.0,3.13566196]
[1694037223615,0.004,25757.0,25756.0,3.17566196]
[1694037223815,0.004,25757.0,25756.0,3.47566196]
[1694037224627,0.004,25757.0,25756.0,3.23160304]
[1694037225239,0.003,25757.0,25756.0,3.23160304]
[1694037225471,0.004,25757.0,25756.0,3.47049283]
[1694037225821,0.001,25757.0,25756.0,3.46949283]
[1694037226032,0.002,25757.0,25756.0,3.24460304]
[1694037226621,0.001,25757.0,25756.0,3.64740304]
[1694037226821,0.00098736,25761.0,25760.0,0.04]
[1694037227050,0.00098736,25761.0,25760.0,5.07405143]
[1694037227316,0.015,25762.0,25760.0,5.07405143]
[1694037227521,0.015,25762.0,25761.0,0.53054527]
[1694037227724,0.015,25762.0,25761.0,3.15964627]
[1694037227924,0.015,25762.0,25761.0,3.19109736]
[1694037229638,0.039,25762.0,25761.0,3.19309736]
[1694037230478,0.063,25762.0,25761.0,3.19409736]
[1694037232453,0.048,25762.0,25761.0,3.19409736]
[1694037232651,0.063,25762.0,25761.0,3.19409736]
[1694037233586,0.063,25762.0,25761.0,3.29373592]
[1694037233736,0.039,25762.0,25761.0,3.29273592]
[1694037233982,0.06,25762.0,25761.0,3.29373592]
[1694037234507,0.036,25762.0,25761.0,3.29173592]
[1694037234739,0.037,25762.0,25761.0,3.29173592]
[1694037235318,0.016,25762.0,25761.0,3.29073592]
[1694037236123,0.02,25762.0,25761.0,3.29173592]
[1694037237425,0.02,25762.0,25761.0,3.32355138]
[1694037244388,0.02,25762.0,25761.0,3.38075697]
[1694037247140,0.02,25762.0,25761.0,3.39243359]
[1694037262502,0.02,25762.0,25761.0,3.48467215]
[1694037272501,0.02,25762.0,25761.0,3.39243359]
[1694037282487,0.02,25762.0,25761.0,3.41243359]
[1694037283205,0.02,25762.0,25761.0,3.53333359]
[1694037284063,0.019,25762.0,25761.0,3.53333359]
[1694037284266,0.02,25762.0,25761.0,3.53333359]
[1694037284698,0.015,25762.0,25761.0,3.53233359]
[1694037284879,0.015,25762.0,25761.0,3.54933359]
[1694037284880,0.017,25762.0,25761.0,3.54933359]
[1694037285046,0.021,25762.0,25761.0,3.55033359]
[1694037285578,0.017,25762.0,25761.0,3.54933359]
[1694037285950,0.019,25762.0,25761.0,3.56233359]
[1694037288009,0.019,25762.0,25761.0,3.58233359]
[1694037309041,0.019,25762.0,25761.0,3.48269503]
[1694037309448,0.1747,25765.0,25761.0,3.48269503]
[1694037309713,0.1547,25765.0,25764.0,0.1209]
[1694037309915,0.0009879,25766.0,25764.0,4.41192527]
[1694037310094,0.3498,25767.0,25765.0,0.50754527]
[1694037310443,0.3498,25767.0,25766.0,3.47884358]
[1694037310444,0.1731,25767.0,25766.0,3.47884358]
[1694037310643,0.02,25767.0,25766.0,3.86548885]
[1694037311728,0.02,25767.0,25766.0,3.86748885]
[1694037312084,0.044,25767.0,25766.0,3.86748885]
[1694037312292,0.068,25767.0,25766.0,3.86848885]
[1694037314278,0.044,25767.0,25766.0,3.86748885]
[1694037314874,0.063,25767.0,25766.0,3.86948885]
[1694037315092,0.039,25767.0,25766.0,3.86748885]
[1694037315302,0.032,25767.0,25766.0,3.86648885]
[1694037315648,0.042,25767.0,25766.0,3.86748885]
[1694037317839,0.022,25767.0,25766.0,3.92170966]
[1694037318087,0.022,25767.0,25766.0,3.66863008]
[1694037318871,0.022,25767.0,25766.0,3.87103946]
[1694037322518,0.022,25767.0,25766.0,3.87103946]
[1694037323838,0.022,25767.0,25766.0,3.90254826]
[1694037330418,0.1861,25769.0,25766.0,3.90054826]
[1694037330589,0.1861,25769.0,25768.0,3.346424]
[1694037330801,0.02,25769.0,25768.0,3.73306927]
[1694037331865,0.039,25769.0,25768.0,3.73506927]
[1694037332194,0.039,25769.0,25768.0,3.99172502]
[1694037333072,0.06,25769.0,25768.0,3.99172502]
[1694037333405,0.039,25769.0,25768.0,3.99172502]
[1694037333825,0.04,25769.0,25768.0,3.99372502]
[1694037334062,0.06,25769.0,25768.0,3.99372502]
[1694037338851,0.06,25769.0,25768.0,4.03651642]
[1694037342195,0.06,25769.0,25768.0,4.04831206]
[1694037354462,0.15268582,25769.0,25768.0,4.04831206]
[1694037375712,0.06,25769.0,25768.0,4.04831206]
[1694037375921,0.15268582,25769.0,25768.0,4.04831206]
[1694037376464,0.06,25769.0,25768.0,4.04831206]
[1694037377231,0.15268582,25769.0,25768.0,4.04831206]
[1694037377851,0.06,25769.0,25768.0,4.04831206]
[1694037378052,0.15268582,25769.0,25768.0,4.04831206]
[1694037380942,0.06,25769.0,25768.0,4.04831206]
[1694037385217,0.04,25769.0,25768.0,4.04831206]
[1694037388413,0.04,25769.0,25768.0,3.81165631]
[1694037388613,0.11248582,25772.0,25768.0,3.81165631]
[1694037388614,0.0398,25772.0,25769.0,0.02]
[1694037388813,0.0198,25772.0,25771.0,4.02123]
[1694037389164,0.0198,25772.0,25771.0,4.82877527]
[1694037389315,0.0198,25772.0,25771.0,4.85177527]
[1694037389727,0.0438,25772.0,25771.0,4.85177527]
[1694037389936,0.0678,25772.0,25771.0,4.85377527]
[1694037391109,0.0438,25772.0,25771.0,4.85377527]
[1694037391288,0.00098448,25774.0,25772.0,0.04]
[1694037391441,0.00098448,25774.0,25773.0,4.41057027]
[1694037391648,0.11268582,25776.0,25773.0,4.41057027]
[1694037391834,0.11268582,25776.0,25775.0,0.1209]
[1694037392036,0.11268582,25776.0,25775.0,3.22468]
[1694037392693,0.02,25776.0,25775.0,3.22468]
[1694037393059,0.11268582,25776.0,25775.0,3.22468]
[1694037393267,0.02,25776.0,25775.0,3.22468]
[1694037393465,0.02,25776.0,25775.0,3.22668]
[1694037394447,0.044,25776.0,25775.0,3.22868]
[1694037394673,0.044,25776.0,25775.0,3.2275221]
[1694037397505,0.044,25776.0,25775.0,3.40242433]
[1694037398889,0.044,25776.0,25775.0,3.83390508]
[1694037402344,0.044,25776.0,25775.0,3.89202886]
[1694037403376,0.044,25776.0,25775.0,3.89002886]
[1694037403578,0.055,25776.0,25775.0,3.89202886]
[1694037403807,0.031,25776.0,25775.0,3.89002886]
[1694037404191,0.031,25776.0,25775.0,3.89202886]
[1694037404192,0.055,25776.0,25775.0,3.89202886]
[1694037405328,0.055,25776.0,25775.0,3.93537202]
[1694037427999,0.055,25776.0,25775.0,1.89536981]
[1694037428200,0.055,25776.0,25775.0,0.34347981]
[1694037428524,0.055,25776.0,25775.0,0.16857758]
[1694037428525,2.57024011,25776.0,25775.0,0.16857758]
[1694037428879,2.57024011,25776.0,25775.0,0.04883548]
[1694037428880,2.382745,25776.0,25775.0,0.04883548]
[1694037429080,2.54133112,25776.0,25775.0,0.04883548]
[1694037429295,3.12980252,25776.0,25775.0,0.04883548]
[1694037429521,3.37026649,25776.0,25775.0,3.548e-05]
[1694037429734,3.37026649,25776.0,25770.0,0.1209]
[1694037429735,0.02,25771.0,25770.0,0.1209]
[1694037429938,0.05679624,25771.0,25770.0,0.1209]
[1694037430135,2.68158895,25771.0,25770.0,0.1209]
[1694037430379,2.68158895,25771.0,25770.0,0.17028627]
[1694037430821,2.68158895,25771.0,25770.0,0.04938627]
[1694037431048,2.74158895,25771.0,25770.0,0.04938627]
[1694037431425,0.796126,25769.0,25768.0,0.1209]
[1694037431640,1.07029529,25769.0,25768.0,0.1209]
[1694037431872,0.29416929,25769.0,25768.0,0.1209]
[1694037432182,0.02,25765.0,25764.0,0.155361]
[1694037432386,0.02,25764.0,25762.0,1.673537]
[1694037432587,0.02,25763.0,25762.0,0.897217]
[1694037432796,0.02,25763.0,25762.0,0.1209]
[1694037432797,0.05679624,25763.0,25762.0,0.1209]
[1694037433014,0.02,25763.0,25762.0,0.1209]
[1694037434024,0.021,25763.0,25762.0,0.1319]
[1694037434382,0.022,25763.0,25762.0,0.1339]
[1694037434589,0.21076517,25763.0,25762.0,0.1339]
[1694037435601,0.02,25762.0,25761.0,1.370498]
[1694037435810,0.02,25762.0,25761.0,1.491398]
[1694037436720,0.022,25762.0,25761.0,1.491398]
[1694037436917,0.024,25762.0,25761.0,1.501398]
[1694037437369,0.024,25762.0,25761.0,1.5451533]
[1694037438705,0.13899709,25762.0,25761.0,1.5451533]
[1694037443685,0.13899709,25762.0,25761.0,0.1746553]
[1694037446814,0.13899709,25762.0,25761.0,0.9510223]
[1694037453027,0.13899709,25762.0,25761.0,0.1746553]
[1694037453207,0.13899709,25762.0,25761.0,0.9510223]
[1694037454773,0.13899709,25762.0,25761.0,0.0537553]
[1694037454984,0.024,25762.0,25761.0,0.0537553]
[1694037455282,0.800337,25762.0,25761.0,0.0537553]
[1694037457337,1.576674,25762.0,25761.0,0.0537553]
[1694037457521,0.024,25762.0,25761.0,0.0537553]
[1694037457722,1.576674,25762.0,25761.0,0.0537553]
[1694037457928,2.60718732,25762.0,25761.0,0.0537553]
[1694037458326,1.83085032,25762.0,25761.0,0.0537553]
[1694037459612,2.60718732,25762.0,25761.0,0.0537553]
[1694037460216,1.83085032,25762.0,25761.0,0.0537553]
[1694037461424,1.05451332,25762.0,25761.0,0.0537553]
[1694037464755,0.27817632,25762.0,25761.0,0.0537553]
[1694037465181,1.05451332,25762.0,25761.0,0.0537553]
[1694037465990,1.83085032,25762.0,25761.0,0.0537553]
[1694037468537,1.05451332,25762.0,25761.0,0.0537553]
[1694037469929,0.27817632,25762.0,25761.0,0.0537553]
[1694037470355,1.83085032,25762.0,25761.0,0.0537553]
[1694037475847,1.83085032,25762.0,25761.0,0.14629742]
[1694037476642,2.60718732,25762.0,25761.0,0.0537553]
[1694037476843,1.05451332,25762.0,25761.0,0.0537553]
[1694037477566,2.60718732,25762.0,25761.0,0.14629742]
[1694037477770,2.60718732,25762.0,25761.0,0.0537553]
[1694037479913,1.05451332,25762.0,25761.0,0.0537553]
[1694037481560,2.21749559,25762.0,25761.0,0.0537553]
[1694037481762,2.99383259,25762.0,25761.0,0.0537553]
[1694037481962,3.21473259,25762.0,25761.0,0.0537553]
[1694037482138,3.16037259,25762.0,25761.0,0.0537553]
[1694037482341,3.16013259,25762.0,25761.0,0.0537553]
[1694037482523,3.21947259,25762.0,25761.0,0.0537553]
[1694037482721,3.34085259,25762.0,25761.0,0.0537553]
[1694037482935,3.34001259,25762.0,25761.0,0.0537553]
[1694037483130,3.27473259,25762.0,25761.0,0.01]
[1694037483531,3.43659528,25762.0,25761.0,0.01]
[1694037483747,3.43845528,25762.0,25761.0,0.01]
[1694037483957,3.44091528,25762.0,25761.0,0.01]
[1694037484161,3.34919259,25762.0,25761.0,0.01]
[1694037484422,3.35273259,25762.0,25761.0,0.01]
[1694037484632,3.44751528,25762.0,25761.0,0.01]
[1694037484803,3.44499528,25762.0,25761.0,0.01]
[1694037485001,3.44529528,25762.0,25761.0,0.01]
[1694037485288,3.44523528,25762.0,25761.0,0.01]
[1694037485489,3.44493528,25762.0,25761.0,0.01]
[1694037486091,3.44499528,25762.0,25761.0,0.01]
[1694037486338,3.44481528,25762.0,25761.0,0.01]
[1694037486542,3.49102391,25762.0,25761.0,0.01]
[1694037486745,3.58417869,25762.0,25761.0,0.01]
[1694037487146,3.58423869,25762.0,25761.0,0.01]
[1694037487324,3.57763869,25762.0,25761.0,0.01]
[1694037487530,3.67057234,25762.0,25761.0,0.01]
[1694037487732,3.67111234,25762.0,25761.0,0.01]
[1694037488052,2.70862691,25762.0,25761.0,0.01]
[1694037488264,2.71234691,25762.0,25761.0,0.01]
[1694037488425,3.48862391,25762.0,25761.0,0.01]
[1694037488809,3.54008102,25762.0,25761.0,0.01]
[1694037488986,3.53960102,25762.0,25761.0,0.01]
[1694037489418,3.53936102,25762.0,25761.0,0.01]
[1694037489629,3.53978102,25762.0,25761.0,0.01]
[1694037489833,3.53936102,25762.0,25761.0,0.01]
[1694037490059,4.08006633,25762.0,25761.0,0.01]
[1694037490252,3.8934379,25762.0,25761.0,0.01]
[1694037490459,3.8934979,25762.0,25761.0,0.01]
[1694037490697,3.8934379,25762.0,25761.0,0.01]
[1694037490889,4.07972935,25762.0,25761.0,0.01]
[1694037491098,3.66035259,25762.0,25761.0,0.01]
[1694037491349,4.07930989,25762.0,25761.0,0.01]
[1694037491526,3.89223998,25762.0,25761.0,0.01]
[1694037491850,4.07882827,25762.0,25761.0,0.01]
[1694037492237,4.07876827,25762.0,25761.0,0.01]
[1694037492471,4.07828827,25762.0,25761.0,0.01]
[1694037492674,4.07834827,25762.0,25761.0,0.01]
[1694037492881,4.07828827,25762.0,25761.0,0.01]
[1694037493054,4.07834827,25762.0,25761.0,0.01]
[1694037493359,4.07840827,25762.0,25761.0,0.01]
[1694037493565,4.07774827,25762.0,25761.0,0.01]
[1694037493766,3.84490088,25762.0,25761.0,0.01]
[1694037494060,3.84454088,25762.0,25761.0,0.01]
[1694037494390,4.25334088,25762.0,25761.0,0.01]
[1694037494538,4.30691998,25762.0,25761.0,0.01]
[1694037494891,4.08343259,25762.0,25761.0,0.01]
[1694037495121,4.31549886,25762.0,25761.0,0.01]
[1694037495292,4.31417886,25762.0,25761.0,0.01]
[1694037495498,4.31435886,25762.0,25761.0,0.01]
[1694037495725,4.31267886,25762.0,25761.0,0.01]
[1694037495858,4.31279886,25762.0,25761.0,0.01]
[1694037496058,4.31273886,25762.0,25761.0,0.01]
[1694037496421,4.31261886,25762.0,25761.0,0.01]
[1694037496620,4.31207886,25762.0,25761.0,0.01]
[1694037497037,4.31195886,25762.0,25761.0,0.01]
[1694037497178,4.31567886,25762.0,25761.0,0.01]
[1694037497376,4.31501886,25762.0,25761.0,0.01]
[1694037497588,4.31477886,25762.0,25761.0,0.01]
[1694037497783,4.50091231,25762.0,25761.0,0.01]
[1694037498007,4.50073231,25762.0,25761.0,0.01]
[1694037498207,4.50061231,25762.0,25761.0,0.01]
[1694037498435,4.31423886,25762.0,25761.0,0.01]
[1694037498764,4.32509886,25762.0,25761.0,0.01]
[1694037498879,4.32473886,25762.0,25761.0,0.01]
[1694037499090,4.32365886,25762.0,25761.0,0.01]
[1694037499297,4.32413886,25762.0,25761.0,0.01]
[1694037499516,0.5088,25756.0,25755.0,0.03886]
[1694037499719,4.15921351,25756.0,25755.0,0.03886]
[1694037499932,4.47538596,25756.0,25755.0,0.03886]
[1694037500137,4.43798972,25756.0,25755.0,0.03886]
[1694037500335,4.43684972,25756.0,25755.0,0.03886]
[1694037500541,4.68502551,25756.0,25755.0,0.03886]
[1694037500745,4.58946254,25756.0,25755.0,0.03886]
[1694037500950,4.59210254,25756.0,25755.0,0.03886]
[1694037501153,4.59218254,25756.0,25755.0,0.03886]
[1694037501409,4.59224254,25756.0,25755.0,0.03886]
[1694037501556,4.59454254,25756.0,25752.0,0.03886]
[1694037501810,4.59454254,25756.0,25751.0,0.22362211]
[1694037501811,4.12541351,25756.0,25755.0,0.03886]
[1694037502026,4.12641727,25756.0,25755.0,0.03886]
[1694037502365,4.20719727,25756.0,25755.0,0.03886]
[1694037502565,0.02,25755.0,25751.0,0.14813009]
[1694037502814,3.106336,25754.0,25752.0,0.03886]
[1694037502990,0.3447236,25753.0,25752.0,0.03886]
[1694037503188,2.6745476,25753.0,25752.0,0.07797612]
[1694037504364,2.6765476,25753.0,25752.0,0.07797612]
[1694037504660,2.6965476,25753.0,25752.0,0.07797612]
[1694037505169,2.6985476,25753.0,25752.0,0.07797612]
[1694037512006,2.6785476,25753.0,25752.0,0.07797612]
[1694037514179,2.6745476,25753.0,25752.0,0.07797612]
[1694037514370,2.6785476,25753.0,25752.0,0.07797612]
[1694037515007,3.06519287,25753.0,25752.0,0.07797612]
[1694037536174,3.06519287,25753.0,25752.0,0.03911612]
[1694037536720,0.02,25750.0,25749.0,0.019998]
[1694037536962,0.796699,25750.0,25749.0,0.019998]
[1694037537184,1.0317061,25750.0,25749.0,0.019998]
[1694037537894,1.8084051,25750.0,25749.0,0.019998]
[1694037538342,1.0317061,25750.0,25749.0,0.019998]
[1694037538542,1.8084051,25750.0,25749.0,0.019998]
[1694037538744,1.0317061,25750.0,25749.0,0.019998]
[1694037538947,1.0337061,25750.0,25749.0,0.019998]
[1694037539102,1.0357061,25750.0,25749.0,0.019998]
[1694037539982,1.8124051,25750.0,25749.0,0.019998]
[1694037540180,1.0357061,25750.0,25749.0,0.019998]
[1694037543425,0.2590071,25750.0,25749.0,0.019998]
[1694037548669,0.2590071,25750.0,25749.0,0.06165695]
[1694037548872,1.0357061,25750.0,25749.0,0.06165695]
[1694037549606,0.2590071,25750.0,25749.0,0.06165695]
[1694037564444,0.2590071,25750.0,25749.0,0.83838595]
[1694037565135,0.2590071,25750.0,25749.0,0.06165695]
[1694037566401,0.2590071,25750.0,25749.0,0.83838595]
[1694037567031,0.2590071,25750.0,25749.0,0.95928595]
[1694037567362,0.2590071,25750.0,25749.0,0.18255695]
[1694037575370,0.2590071,25750.0,25749.0,0.95928595]
[1694037575640,0.024,25750.0,25749.0,0.95928595]
[1694037577389,0.024,25750.0,25749.0,1.73601495]
[1694037579256,0.024,25750.0,25749.0,0.18255695]
[1694037579888,0.800699,25750.0,25749.0,0.18255695]
[1694037580097,1.01574384,25750.0,25749.0,0.18255695]
[1694037580273,1.79244284,25750.0,25749.0,0.18255695]
[1694037581439,1.01574384,25750.0,25749.0,0.18255695]
[1694037582301,0.23904484,25750.0,25749.0,0.18255695]
[1694037582684,0.33208781,25750.0,25749.0,0.18255695]
[1694037583189,0.33208781,25750.0,25749.0,0.06165695]
[1694037584031,0.23904484,25750.0,25749.0,0.06165695]
[1694037584230,0.33208781,25750.0,25749.0,0.06165695]
[1694037584378,0.23904484,25750.0,25749.0,0.06165695]
[1694037584960,0.33208781,25750.0,25749.0,0.06165695]
[1694037585770,1.88548581,25750.0,25749.0,0.06165695]
[1694037586174,3.04883008,25750.0,25749.0,0.06165695]
[1694037586553,2.27213108,25750.0,25749.0,0.06165695]
[1694037588837,3.04883008,25750.0,25749.0,0.06165695]
[1694037590557,2.27213108,25750.0,25749.0,0.06165695]
[1694037592272,2.17908811,25750.0,25749.0,0.06165695]
[1694037592476,2.27213108,25750.0,25749.0,0.06165695]
[1694037593227,2.27213108,25750.0,25749.0,0.18255695]
[1694037597996,2.27013108,25750.0,25749.0,0.18255695]
[1694037598331,2.26813108,25750.0,25749.0,0.18255695]
[1694037598587,2.27013108,25750.0,25749.0,0.18255695]
[1694037599141,2.27213108,25750.0,25749.0,0.18255695]
[1694037599544,2.27013108,25750.0,25749.0,0.18255695]
[1694037599956,2.27213108,25750.0,25749.0,0.18255695]
[1694037600654,1.49543208,25750.0,25749.0,0.18255695]
[1694037601302,0.024,25750.0,25749.0,0.95920418]
[1694037601500,0.024,25750.0,25749.0,2.51266218]
[1694037601706,0.024,25750.0,25749.0,2.65982681]
[1694037601880,0.024,25750.0,25749.0,2.51266218]
[1694037605580,0.024,25750.0,25749.0,0.18247518]
[1694037605781,0.024,25750.0,25749.0,1.73593318]
[1694037607053,0.024,25750.0,25749.0,2.51266218]
[1694037610713,0.04966525,25750.0,25749.0,2.51266218]
[1694037611524,0.024,25750.0,25749.0,2.51266218]
[1694037614310,0.024,25750.0,25749.0,2.68541818]
[1694037620269,0.024,25750.0,25749.0,2.68551818]
[1694037637945,0.004,25750.0,25749.0,3.15216345]
[1694037638154,0.02,25753.0,25751.0,0.08]
[1694037638331,0.02,25754.0,25752.0,3.26121011]
[1694037638549,0.11403123,25755.0,25752.0,3.26121011]
[1694037638754,0.02,25754.0,25753.0,0.03585107]
[1694037638959,0.02098826,25755.0,25753.0,3.14228307]
[1694037639168,0.02,25755.0,25753.0,3.22228307]
[1694037639986,0.02,25755.0,25753.0,3.22328307]
[1694037640192,0.02,25755.0,25754.0,0.24813817]
[1694037640393,0.02,25755.0,25754.0,2.450634]
[1694037640773,0.021,25755.0,25754.0,2.450634]
[1694037641361,0.022,25755.0,25754.0,2.460634]
[1694037641706,0.023,25755.0,25754.0,2.45947514]
[1694037642116,0.022,25755.0,25754.0,2.45947514]
[1694037642426,0.023,25755.0,25754.0,2.46947514]
[1694037642888,0.023,25755.0,25754.0,2.66965693]
[1694037643067,0.023,25755.0,25754.0,2.46947514]
[1694037643243,0.003,25755.0,25754.0,2.79467908]
[1694037643444,0.003,25755.0,25754.0,3.10002041]
[1694037643644,0.02,25758.0,25756.0,0.08]
[1694037643873,0.02,25758.0,25757.0,3.226848]
[1694037644067,0.02,25758.0,25757.0,4.003335]
[1694037645361,0.02,25758.0,25757.0,4.18916359]
[1694037645857,0.022,25758.0,25757.0,4.21316359]
[1694037646628,0.024,25758.0,25757.0,4.23716359]
[1694037647624,0.004,25758.0,25757.0,4.23716359]
[1694037648351,0.004,25758.0,25757.0,4.31716359]
[1694037648694,0.004,25758.0,25757.0,4.70380886]
[1694037652801,0.004,25758.0,25757.0,4.73954473]
[1694037656283,0.004,25758.0,25757.0,4.57671614]
[1694037656707,0.004,25758.0,25757.0,4.80226459]
[1694037659174,0.004,25758.0,25757.0,4.83355397]
[1694037660205,0.004,25758.0,25757.0,4.75355397]
[1694037687834,0.004,25758.0,25757.0,4.52800552]
[1694037691107,0.004,25758.0,25757.0,4.77613002]
[1694037698905,0.004,25758.0,25757.0,4.52800552]
[1694037699857,0.004,25758.0,25757.0,4.78215466]
[1694037703461,0.004,25758.0,25757.0,4.52800552]
[1694037703755,0.004,25758.0,25757.0,4.82800552]
[1694037703961,0.004,25758.0,25757.0,4.98800552]
[1694037704064,0.1573,25761.0,25758.0,0.14]
[1694037704272,0.02,25762.0,25760.0,0.2418]
[1694037704547,0.02,25762.0,25761.0,1.673634]
[1694037704800,0.02,25762.0,25761.0,3.226368]
[1694037705282,0.1554,25763.0,25761.0,3.226368]
[1694037705283,0.1554,25763.0,25761.0,3.61301327]
[1694037705495,0.02,25764.0,25762.0,0.50754527]
[1694037705743,0.1754,25764.0,25763.0,3.226128]
[1694037705945,0.02,25764.0,25763.0,4.002435]
[1694037706337,0.112926,25765.0,25763.0,4.002435]
[1694037706540,0.112926,25765.0,25764.0,0.1209]
[1694037706691,0.112926,25765.0,25764.0,2.449728]
[1694037707100,0.02,25765.0,25764.0,2.449728]
[1694037707328,0.1754,25766.0,25764.0,2.449728]
[1694037707534,0.013,25765.0,25764.0,2.328828]
[1694037707734,0.1754,25766.0,25764.0,2.449728]
[1694037707940,0.1754,25766.0,25765.0,0.3089065]
[1694037708285,0.02,25766.0,25765.0,2.6376445]
[1694037709458,0.044,25766.0,25765.0,2.6396445]
[1694037710193,0.066,25766.0,25765.0,2.6396445]
[1694037711121,0.044,25766.0,25765.0,2.6396445]
[1694037711334,0.066,25766.0,25765.0,2.6416445]
[1694037713078,0.066,25766.0,25765.0,2.67821411]
[1694037719984,0.066,25766.0,25765.0,2.70928868]
[1694037728362,0.066,25766.0,25765.0,2.70938868]
[1694037728562,0.046,25766.0,25765.0,3.09603395]
[1694037728766,0.046,25766.0,25765.0,3.11903395]
[1694037731401,0.046,25766.0,25765.0,3.48072745]
[1694037731616,0.98678772,25771.0,25767.0,0.02]
[1694037731617,0.17428772,25771.0,25767.0,0.02]
[1694037731839,0.02098772,25771.0,25770.0,0.1209]
[1694037732058,0.05832649,25771.0,25770.0,0.1209]
[1694037732268,0.05733877,25771.0,25770.0,0.1209]
[1694037732483,0.05733877,25771.0,25770.0,0.93329218]
[1694037732689,0.05733877,25771.0,25770.0,1.70938818]
[1694037732893,0.02,25771.0,25770.0,1.70938818]
[1694037733728,0.037,25771.0,25770.0,1.70938818]
[1694037733932,0.02,25771.0,25770.0,1.70938818]
[1694037734036,0.037,25771.0,25770.0,1.71138818]
[1694037734241,0.053,25771.0,25770.0,1.71138818]
[1694037734672,0.037,25771.0,25770.0,1.75939291]
[1694037734872,0.037,25771.0,25770.0,2.53748891]
[1694037735093,0.053,25771.0,25770.0,2.53748891]
[1694037743913,0.036,25771.0,25770.0,2.53548891]
[1694037744337,0.051,25771.0,25770.0,2.53748891]
[1694037748958,0.051,25771.0,25770.0,2.87612945]
[1694037749395,0.051,25771.0,25770.0,3.08538277]
[1694037760948,0.051,25771.0,25770.0,2.87612945]
[1694037761153,0.051,25771.0,25770.0,0.16119618]
[1694037761373,0.14300002,25771.0,25770.0,0.04029618]
[1694037761755,0.23598217,25771.0,25770.0,0.04029618]
[1694037763617,0.37545539,25771.0,25770.0,0.04029618]
[1694037764022,0.23598217,25771.0,25770.0,0.04029618]
[1694037764229,0.37545539,25771.0,25770.0,0.04029618]
[1694037765105,0.28247324,25771.0,25770.0,0.04029618]
[1694037766691,0.46843754,25771.0,25770.0,0.04029618]
[1694037768591,0.32896432,25771.0,25770.0,0.04029618]
[1694037768996,0.46859843,25771.0,25770.0,0.04029618]